[Event "Early-Titled-Tuesday-Blitz-February-27-2024"]
[Site "Chess.com"]
[Date "2024.02.27"]
[Round "3"]
[White "PepeCuenca"]
[Black "Fandorine"]
[Result "1/2-1/2"]
[WhiteElo "2698"]
[BlackElo "2913"]
[TimeControl "180+1"]
[EndTime "8:28:47 PST"]
[Termination "Game drawn by repetition"]

1. d4 {[%clk 0:03:00.9]} 1... Nf6 {[%clk 0:02:58.9]} 2. Bf4 {[%clk 0:03:00.8]}
2... d6 {[%clk 0:02:58.8]} 3. Nc3 {[%clk 0:03:00.3]} 3... Nbd7 {[%clk
0:02:59.1]} 4. Nf3 {[%clk 0:02:58.2]} 4... c5 {[%clk 0:02:59.2]} 5. d5 {[%clk
0:02:54.4]} 5... Qa5 {[%clk 0:02:59.2]} 6. Nd2 {[%clk 0:02:10.9]} 6... b5 {[%clk
0:02:53.3]} 7. e4 {[%clk 0:01:58.9]} 7... a6 {[%clk 0:02:36.5]} 8. a4 {[%clk
0:01:54.9]} 8... b4 {[%clk 0:02:35.4]} 9. Ncb1 {[%clk 0:01:49.3]} 9... Qc7
{[%clk 0:02:28]} 10. a5 {[%clk 0:01:20.9]} 10... g6 {[%clk 0:02:26.2]} 11. f3
{[%clk 0:01:18.5]} 11... Bg7 {[%clk 0:02:24.8]} 12. Nc4 {[%clk 0:01:18.8]} 12...
O-O {[%clk 0:02:19.2]} 13. Be2 {[%clk 0:01:17.6]} 13... Nh5 {[%clk 0:02:10.9]}
14. Be3 {[%clk 0:01:15]} 14... Ne5 {[%clk 0:02:02.1]} 15. Nbd2 {[%clk 0:01:13]}
15... Nxc4 {[%clk 0:02:01.2]} 16. Nxc4 {[%clk 0:01:12.6]} 16... Rb8 {[%clk
0:02:01.9]} 17. O-O {[%clk 0:01:11.4]} 17... Bd7 {[%clk 0:01:51.4]} 18. Nb6
{[%clk 0:00:41.6]} 18... Bxb2 {[%clk 0:01:31.6]} 19. Ra2 {[%clk 0:00:41.7]}
19... Bd4 {[%clk 0:01:04.1]} 20. Bxd4 {[%clk 0:00:40]} 20... cxd4 {[%clk
0:01:05]} 21. Qxd4 {[%clk 0:00:35.6]} 21... Bc8 {[%clk 0:00:43.3]} 22. Qxb4
{[%clk 0:00:32.2]} 22... Nf4 {[%clk 0:00:33.6]} 23. c4 {[%clk 0:00:31.2]} 23...
e5 {[%clk 0:00:27.1]} 24. Rc1 {[%clk 0:00:29]} 24... Qe7 {[%clk 0:00:26.1]} 25.
Bf1 {[%clk 0:00:21.8]} 25... f5 {[%clk 0:00:25.1]} 26. g3 {[%clk 0:00:17]} 26...
Qg5 {[%clk 0:00:22.1]} 27. Qd2 {[%clk 0:00:16]} 27... fxe4 {[%clk 0:00:17.9]}
28. fxe4 {[%clk 0:00:16.3]} 28... Bh3 {[%clk 0:00:16]} 29. Bxh3 {[%clk
0:00:02.8]} 29... Nxh3+ {[%clk 0:00:16.1]} 30. Kh1 {[%clk 0:00:03.2]} 30... Qg4
{[%clk 0:00:14.6]} 31. Qg2 {[%clk 0:00:02.9]} 31... Rf3 {[%clk 0:00:12.6]} 32.
c5 {[%clk 0:00:02.7]} 32... Rbf8 {[%clk 0:00:10.5]} 33. cxd6 {[%clk 0:00:02]}
33... Ng5 {[%clk 0:00:07.2]} 34. d7 {[%clk 0:00:02.1]} 34... Nxe4 {[%clk
0:00:07.8]} 35. d6 {[%clk 0:00:01.8]} 35... Nf2+ {[%clk 0:00:05]} 36. Kg1 {[%clk
0:00:01.9]} 36... Nh3+ {[%clk 0:00:05.2]} 37. Kh1 {[%clk 0:00:02.4]} 37... e4
{[%clk 0:00:06.1]} 38. d8=Q {[%clk 0:00:01.7]} 38... Rxd8 {[%clk 0:00:06.1]} 39.
d7 {[%clk 0:00:02.3]} 39... Rxd7 {[%clk 0:00:06.4]} 40. Nxd7 {[%clk 0:00:02.3]}
40... Qxd7 {[%clk 0:00:07.3]} 41. Rac2 {[%clk 0:00:02]} 41... Qf5 {[%clk
0:00:06.1]} 42. Rc8+ {[%clk 0:00:02]} 42... Kg7 {[%clk 0:00:06.7]} 43. R8c7+
{[%clk 0:00:02.4]} 43... Kh6 {[%clk 0:00:07.3]} 44. Qd2+ {[%clk 0:00:02.8]}
44... e3 {[%clk 0:00:07.5]} 45. Qg2 {[%clk 0:00:03]} 45... Nf2+ {[%clk
0:00:05.9]} 46. Kg1 {[%clk 0:00:03]} 46... Nh3+ {[%clk 0:00:06.1]} 47. Kh1
{[%clk 0:00:03.4]} 47... Rf2 {[%clk 0:00:06]} 48. Qb7 {[%clk 0:00:02.2]} 48...
Rf1+ {[%clk 0:00:03.6]} 49. Kg2 {[%clk 0:00:01.9]} 49... Rf2+ {[%clk 0:00:02.7]}
50. Kh1 {[%clk 0:00:01.9]} 50... Rf1+ {[%clk 0:00:02.1]} 51. Kg2 {[%clk
0:00:02.5]} 51... Rf2+ {[%clk 0:00:02.5]} 52. Kh1 {[%clk 0:00:03.2]} 1/2-1/2

[Event "Early-Titled-Tuesday-Blitz-February-27-2024"]
[Site "Chess.com"]
[Date "2024.02.27"]
[Round "3"]
[White "TitarovVasiliYouTube"]
[Black "Elsa167"]
[Result "0-1"]
[WhiteElo "2519"]
[BlackElo "2879"]
[TimeControl "180+1"]
[EndTime "8:28:47 PST"]
[Termination "Elsa167 won by resignation"]

1. e4 {[%clk 0:03:00.9]} 1... c5 {[%clk 0:02:59.3]} 2. Nf3 {[%clk 0:03:00.7]}
2... e6 {[%clk 0:02:59.6]} 3. Be2 {[%clk 0:02:59.6]} 3... Nc6 {[%clk 0:02:57.3]}
4. O-O {[%clk 0:02:59.6]} 4... Nf6 {[%clk 0:02:57.3]} 5. Nc3 {[%clk 0:02:54.3]}
5... Be7 {[%clk 0:02:48]} 6. Re1 {[%clk 0:02:45.3]} 6... O-O {[%clk 0:02:46.9]}
7. e5 {[%clk 0:02:39.8]} 7... Nd5 {[%clk 0:02:34.4]} 8. Nxd5 {[%clk 0:02:23.6]}
8... exd5 {[%clk 0:02:34.6]} 9. d4 {[%clk 0:02:24]} 9... d6 {[%clk 0:02:35.1]}
10. exd6 {[%clk 0:02:23.4]} 10... Bxd6 {[%clk 0:02:36]} 11. Bg5 {[%clk
0:02:11.8]} 11... Qb6 {[%clk 0:02:34.7]} 12. dxc5 {[%clk 0:02:10.3]} 12... Bxc5
{[%clk 0:02:35]} 13. Bh4 {[%clk 0:02:05.4]} 13... Be6 {[%clk 0:02:10.1]} 14. Rb1
{[%clk 0:01:53.3]} 14... Rac8 {[%clk 0:01:58.2]} 15. c3 {[%clk 0:01:53.2]} 15...
a5 {[%clk 0:01:48.6]} 16. Qd2 {[%clk 0:01:03.5]} 16... d4 {[%clk 0:01:42.1]} 17.
a3 {[%clk 0:00:33.3]} 17... dxc3 {[%clk 0:01:25.1]} 18. bxc3 {[%clk 0:00:34.2]}
18... Qa7 {[%clk 0:01:04.5]} 19. a4 {[%clk 0:00:31.9]} 19... Be7 {[%clk
0:00:55.3]} 20. Bxe7 {[%clk 0:00:30.7]} 20... Nxe7 {[%clk 0:00:56]} 21. Bb5
{[%clk 0:00:28.7]} 21... Rfd8 {[%clk 0:00:38.3]} 22. Qg5 {[%clk 0:00:28.9]}
22... Qc5 {[%clk 0:00:37.4]} 23. Qxc5 {[%clk 0:00:27]} 23... Rxc5 {[%clk
0:00:38.3]} 24. Nd4 {[%clk 0:00:27.9]} 24... Rd6 {[%clk 0:00:31.7]} 25. Nxe6
{[%clk 0:00:27.3]} 25... Rxe6 {[%clk 0:00:31.9]} 26. Rxe6 {[%clk 0:00:22.9]}
26... fxe6 {[%clk 0:00:32.8]} 27. c4 {[%clk 0:00:16.9]} 27... Nf5 {[%clk
0:00:27.2]} 28. Kf1 {[%clk 0:00:14.6]} 28... Nd6 {[%clk 0:00:24.5]} 29. Rd1
{[%clk 0:00:02.9]} 29... Nxc4 {[%clk 0:00:22.1]} 30. Rd8+ {[%clk 0:00:02.6]}
30... Kf7 {[%clk 0:00:22]} 31. Rd7+ {[%clk 0:00:03]} 31... Kf6 {[%clk
0:00:21.8]} 32. Rxb7 {[%clk 0:00:03.9]} 32... Nd6 {[%clk 0:00:17.2]} 33. Ra7
{[%clk 0:00:03.6]} 33... Rc2 {[%clk 0:00:15.5]} 34. Rxa5 {[%clk 0:00:02.9]}
34... Rb2 {[%clk 0:00:10.8]} 35. Ke1 {[%clk 0:00:02.1]} 35... Ne4 {[%clk
0:00:09.8]} 36. Ra8 {[%clk 0:00:02.1]} 36... Ke5 {[%clk 0:00:09.2]} 37. f3
{[%clk 0:00:02.3]} 37... Nc3 {[%clk 0:00:08.9]} 38. Rd8 {[%clk 0:00:01.3]} 38...
Nd5 {[%clk 0:00:08.9]} 39. Rd7 {[%clk 0:00:01.3]} 39... Kd4 {[%clk 0:00:09]} 40.
Rd8 {[%clk 0:00:01.8]} 40... Ke3 {[%clk 0:00:09.5]} 41. Kd1 {[%clk 0:00:02]}
41... Rxg2 {[%clk 0:00:09.4]} 42. a5 {[%clk 0:00:01.6]} 42... Nc3+ {[%clk
0:00:09.9]} 43. Kc1 {[%clk 0:00:01.2]} 43... Nxb5 {[%clk 0:00:10.8]} 44. a6
{[%clk 0:00:01.9]} 44... Ra2 {[%clk 0:00:10.8]} 45. Rb8 {[%clk 0:00:01.9]} 45...
Nd4 {[%clk 0:00:10.4]} 46. Rh8 {[%clk 0:00:01.9]} 46... Rxa6 {[%clk 0:00:10]}
47. Rxh7 {[%clk 0:00:02.8]} 47... Nf5 {[%clk 0:00:08.9]} 48. Rh5 {[%clk
0:00:02.6]} 48... Kxf3 {[%clk 0:00:08.1]} 49. Rh8 {[%clk 0:00:03.1]} 49... Ra2
{[%clk 0:00:07.9]} 50. Rb8 {[%clk 0:00:02.4]} 50... Rxh2 {[%clk 0:00:07.4]} 51.
Rh8 {[%clk 0:00:03.1]} 51... Rxh8 {[%clk 0:00:07.1]} 0-1

[Event "Early-Titled-Tuesday-Blitz-February-27-2024"]
[Site "Chess.com"]
[Date "2024.02.27"]
[Round "3"]
[White "vovachesss"]
[Black "Nouali_Mohamed"]
[Result "1-0"]
[WhiteElo "2782"]
[BlackElo "2545"]
[TimeControl "180+1"]
[EndTime "8:28:49 PST"]
[Termination "vovachesss won on time"]

1. d4 {[%clk 0:03:00.9]} 1... Nf6 {[%clk 0:02:58.3]} 2. c4 {[%clk 0:03:01.4]}
2... g6 {[%clk 0:02:57.7]} 3. Nc3 {[%clk 0:03:01]} 3... Bg7 {[%clk 0:02:58.2]}
4. e4 {[%clk 0:02:56.1]} 4... O-O {[%clk 0:02:59.1]} 5. Nf3 {[%clk 0:02:56.7]}
5... d6 {[%clk 0:02:58.7]} 6. Be2 {[%clk 0:02:56.6]} 6... c5 {[%clk 0:02:58.5]}
7. O-O {[%clk 0:02:51.5]} 7... cxd4 {[%clk 0:02:58.5]} 8. Nxd4 {[%clk
0:02:52.4]} 8... Nc6 {[%clk 0:02:59.2]} 9. Be3 {[%clk 0:02:49.3]} 9... Nxd4
{[%clk 0:02:59.6]} 10. Bxd4 {[%clk 0:02:48.8]} 10... Be6 {[%clk 0:03:00.5]} 11.
Rc1 {[%clk 0:02:46.2]} 11... Qa5 {[%clk 0:02:59.9]} 12. b3 {[%clk 0:02:43.8]}
12... a6 {[%clk 0:02:58.9]} 13. Re1 {[%clk 0:02:38.2]} 13... Rfc8 {[%clk
0:02:45.7]} 14. Bf1 {[%clk 0:02:33.3]} 14... b5 {[%clk 0:02:29.8]} 15. cxb5
{[%clk 0:02:28.7]} 15... axb5 {[%clk 0:02:30.7]} 16. Bxb5 {[%clk 0:02:20.2]}
16... Rxc3 {[%clk 0:02:27.7]} 17. Bxc3 {[%clk 0:02:09.8]} 17... Qxb5 {[%clk
0:02:27.2]} 18. Qe2 {[%clk 0:02:03.7]} 18... Qb6 {[%clk 0:01:55.9]} 19. h3
{[%clk 0:02:00.3]} 19... h5 {[%clk 0:01:45.7]} 20. Qb2 {[%clk 0:01:55]} 20... h4
{[%clk 0:01:32]} 21. Re2 {[%clk 0:01:46.9]} 21... Bh6 {[%clk 0:01:20.5]} 22. Rd1
{[%clk 0:01:42.9]} 22... Nh5 {[%clk 0:01:18.9]} 23. Bd4 {[%clk 0:01:14.7]} 23...
Qa6 {[%clk 0:01:17.6]} 24. Be3 {[%clk 0:01:14.3]} 24... Bg7 {[%clk 0:01:10]} 25.
Bd4 {[%clk 0:01:14.5]} 25... Nf4 {[%clk 0:00:50.6]} 26. Rc2 {[%clk 0:01:12.6]}
26... Bxd4 {[%clk 0:00:27.9]} 27. Rxd4 {[%clk 0:01:13.5]} 27... Qa5 {[%clk
0:00:18.4]} 28. Ra4 {[%clk 0:00:12.2]} 28... Qe1+ {[%clk 0:00:15.3]} 29. Kh2
{[%clk 0:00:12.9]} 29... Rxa4 {[%clk 0:00:14.3]} 30. bxa4 {[%clk 0:00:13.8]}
30... Qf1 {[%clk 0:00:10.4]} 31. f3 {[%clk 0:00:12.6]} 31... Bxh3 {[%clk
0:00:09.5]} 32. gxh3 {[%clk 0:00:06.3]} 32... Qxh3+ {[%clk 0:00:09.7]} 33. Kg1
{[%clk 0:00:06.8]} 33... Qg3+ {[%clk 0:00:10]} 34. Kh1 {[%clk 0:00:07.1]} 34...
Qxf3+ {[%clk 0:00:09.9]} 35. Kh2 {[%clk 0:00:07.8]} 35... Qg3+ {[%clk
0:00:08.7]} 36. Kh1 {[%clk 0:00:08.5]} 36... Qe1+ {[%clk 0:00:07.6]} 37. Kh2
{[%clk 0:00:08.4]} 37... Qg3+ {[%clk 0:00:06.6]} 38. Kh1 {[%clk 0:00:08.7]}
38... e5 {[%clk 0:00:05.8]} 39. Qb3 {[%clk 0:00:06.9]} 39... Qe1+ {[%clk
0:00:04.2]} 40. Kh2 {[%clk 0:00:07.6]} 40... Qxe4 {[%clk 0:00:04.6]} 41. a5
{[%clk 0:00:05.7]} 41... Nd3 {[%clk 0:00:03.1]} 42. a6 {[%clk 0:00:04.3]} 42...
Qf4+ {[%clk 0:00:03.3]} 43. Kh1 {[%clk 0:00:04.4]} 43... Nf2+ {[%clk 0:00:03.1]}
44. Kg2 {[%clk 0:00:04.9]} 44... h3+ {[%clk 0:00:03.1]} 45. Kf1 {[%clk
0:00:02.8]} 45... Ne4+ {[%clk 0:00:01.5]} 46. Ke2 {[%clk 0:00:02.8]} 46... Ng3+
{[%clk 0:00:01.3]} 47. Kd1 {[%clk 0:00:01.3]} 1-0

[Event "Early-Titled-Tuesday-Blitz-February-27-2024"]
[Site "Chess.com"]
[Date "2024.02.27"]
[Round "3"]
[White "tsaruk_maks"]
[Black "LimeInTheCoconut"]
[Result "1-0"]
[WhiteElo "2754"]
[BlackElo "2498"]
[TimeControl "180+1"]
[EndTime "8:28:50 PST"]
[Termination "tsaruk_maks won on time"]

1. e4 {[%clk 0:02:18.7]} 1... e5 {[%clk 0:02:53.3]} 2. Nf3 {[%clk 0:02:18.6]}
2... Nc6 {[%clk 0:02:53]} 3. c3 {[%clk 0:02:17.5]} 3... Nf6 {[%clk 0:02:49.9]}
4. d3 {[%clk 0:02:16.7]} 4... d5 {[%clk 0:02:43]} 5. Nbd2 {[%clk 0:02:17.6]}
5... Be7 {[%clk 0:02:35.4]} 6. Be2 {[%clk 0:02:17.8]} 6... O-O {[%clk
0:02:35.9]} 7. h3 {[%clk 0:02:18.4]} 7... Re8 {[%clk 0:02:36.4]} 8. Qc2 {[%clk
0:02:16.2]} 8... a5 {[%clk 0:02:35]} 9. g4 {[%clk 0:02:16.2]} 9... dxe4 {[%clk
0:02:28.4]} 10. dxe4 {[%clk 0:02:15.4]} 10... Nd7 {[%clk 0:02:28.7]} 11. Nf1
{[%clk 0:02:12.8]} 11... Nc5 {[%clk 0:02:25.5]} 12. Ng3 {[%clk 0:02:13.3]} 12...
Ne6 {[%clk 0:02:25.3]} 13. Nf5 {[%clk 0:02:11.4]} 13... Bf8 {[%clk 0:02:24.6]}
14. Be3 {[%clk 0:02:10.2]} 14... Bd7 {[%clk 0:02:13.3]} 15. Rd1 {[%clk
0:02:09.8]} 15... Qc8 {[%clk 0:02:13.3]} 16. Bc4 {[%clk 0:02:03.2]} 16... a4
{[%clk 0:02:07.1]} 17. h4 {[%clk 0:02:00]} 17... Nf4 {[%clk 0:01:57.6]} 18. Ng5
{[%clk 0:01:44.9]} 18... Be6 {[%clk 0:01:47.2]} 19. Nxe6 {[%clk 0:01:44]} 19...
fxe6 {[%clk 0:01:36.4]} 20. Kf1 {[%clk 0:01:38.4]} 20... Kh8 {[%clk 0:01:35.3]}
21. Ng3 {[%clk 0:01:06.8]} 21... Rd8 {[%clk 0:01:14.9]} 22. f3 {[%clk
0:00:52.1]} 22... Rxd1+ {[%clk 0:01:08]} 23. Qxd1 {[%clk 0:00:51.7]} 23... Qe8
{[%clk 0:01:07.7]} 24. Rh2 {[%clk 0:00:50.5]} 24... a3 {[%clk 0:01:05.7]} 25. b4
{[%clk 0:00:50.1]} 25... Rd8 {[%clk 0:01:00.1]} 26. Rd2 {[%clk 0:00:50.3]} 26...
Rxd2 {[%clk 0:00:59]} 27. Qxd2 {[%clk 0:00:51.2]} 27... Bd6 {[%clk 0:00:36.7]}
28. Qc1 {[%clk 0:00:34.9]} 28... Qd8 {[%clk 0:00:17.8]} 29. g5 {[%clk
0:00:34.5]} 29... Qa8 {[%clk 0:00:16.8]} 30. Ne2 {[%clk 0:00:34.2]} 30... Nxe2
{[%clk 0:00:16.5]} 31. Kxe2 {[%clk 0:00:35.1]} 31... Ne7 {[%clk 0:00:16.1]} 32.
Bxe6 {[%clk 0:00:34]} 32... Ng6 {[%clk 0:00:16.5]} 33. Bc4 {[%clk 0:00:19.9]}
33... Nxh4 {[%clk 0:00:12.2]} 34. Qh1 {[%clk 0:00:17.4]} 34... Ng6 {[%clk
0:00:12.4]} 35. Bf7 {[%clk 0:00:16.5]} 35... Nf4+ {[%clk 0:00:12.1]} 36. Bxf4
{[%clk 0:00:14.5]} 36... exf4 {[%clk 0:00:13]} 37. Bg6 {[%clk 0:00:11.4]} 37...
Qg8 {[%clk 0:00:13.7]} 38. Qh5 {[%clk 0:00:06.1]} 38... Qxa2+ {[%clk 0:00:13.6]}
39. Kd3 {[%clk 0:00:05.2]} 39... Qb1+ {[%clk 0:00:05]} 40. Kc4 {[%clk
0:00:05.1]} 40... Qf1+ {[%clk 0:00:04.7]} 41. Kb3 {[%clk 0:00:04]} 41... Qb1+
{[%clk 0:00:04]} 42. Kxa3 {[%clk 0:00:04.7]} 42... Qa1+ {[%clk 0:00:03.6]} 43.
Kb3 {[%clk 0:00:05.6]} 43... Qb1+ {[%clk 0:00:03.7]} 44. Kc4 {[%clk 0:00:05.6]}
44... Qf1+ {[%clk 0:00:03.7]} 45. Kd5 {[%clk 0:00:04.6]} 45... Qb5+ {[%clk
0:00:03.1]} 46. Ke6 {[%clk 0:00:05]} 46... h6 {[%clk 0:00:01.3]} 47. gxh6 {[%clk
0:00:03.8]} 47... Qxh5 {[%clk 0:00:02.2]} 48. hxg7+ {[%clk 0:00:03.6]} 48...
Kxg7 {[%clk 0:00:03.1]} 49. Bxh5 {[%clk 0:00:04.4]} 49... Bf8 {[%clk 0:00:01.9]}
50. Kf5 {[%clk 0:00:03.6]} 1-0

[Event "Early-Titled-Tuesday-Blitz-February-27-2024"]
[Site "Chess.com"]
[Date "2024.02.27"]
[Round "3"]
[White "nicolasbatista3"]
[Black "doctorcristian"]
[Result "1-0"]
[WhiteElo "2417"]
[BlackElo "2584"]
[TimeControl "180+1"]
[EndTime "8:28:53 PST"]
[Termination "nicolasbatista3 won on time"]

1. Nf3 {[%clk 0:03:00.1]} 1... g6 {[%clk 0:02:49.6]} 2. d4 {[%clk 0:02:56.3]}
2... Bg7 {[%clk 0:02:48.6]} 3. b3 {[%clk 0:02:56.5]} 3... c5 {[%clk 0:02:48.7]}
4. e3 {[%clk 0:02:56]} 4... Nc6 {[%clk 0:02:48.4]} 5. Bb2 {[%clk 0:02:55.9]}
5... cxd4 {[%clk 0:02:48.5]} 6. exd4 {[%clk 0:02:55.8]} 6... d5 {[%clk
0:02:47.5]} 7. Be2 {[%clk 0:02:53.6]} 7... Nh6 {[%clk 0:02:46.5]} 8. O-O {[%clk
0:02:46.6]} 8... O-O {[%clk 0:02:46.1]} 9. c4 {[%clk 0:02:46.2]} 9... Be6 {[%clk
0:02:41.5]} 10. Nbd2 {[%clk 0:02:44.1]} 10... Nf5 {[%clk 0:02:37.9]} 11. cxd5
{[%clk 0:02:37.1]} 11... Bxd5 {[%clk 0:02:35.9]} 12. Nc4 {[%clk 0:02:37.3]}
12... Bxf3 {[%clk 0:02:23.7]} 13. Bxf3 {[%clk 0:02:37.6]} 13... Nfxd4 {[%clk
0:02:23.9]} 14. Bxc6 {[%clk 0:02:23.4]} 14... Nxc6 {[%clk 0:02:04.3]} 15. Bxg7
{[%clk 0:02:24.3]} 15... Kxg7 {[%clk 0:02:04.6]} 16. Qe2 {[%clk 0:02:21.5]}
16... Qd4 {[%clk 0:02:03.5]} 17. Rad1 {[%clk 0:02:20.3]} 17... Qf6 {[%clk
0:01:58.9]} 18. Rd7 {[%clk 0:02:19.2]} 18... Rab8 {[%clk 0:01:57.7]} 19. h3
{[%clk 0:01:57.6]} 19... Rfd8 {[%clk 0:01:56.2]} 20. Rc7 {[%clk 0:01:57.1]}
20... Rdc8 {[%clk 0:01:47.6]} 21. Rd7 {[%clk 0:01:56.1]} 21... b5 {[%clk
0:01:40.2]} 22. Ne3 {[%clk 0:01:25]} 22... e6 {[%clk 0:01:35.5]} 23. Ng4 {[%clk
0:01:19.1]} 23... Qf5 {[%clk 0:01:22.4]} 24. Qb2+ {[%clk 0:01:17.9]} 24... e5
{[%clk 0:01:21.4]} 25. Rfd1 {[%clk 0:00:56.6]} 25... Rd8 {[%clk 0:01:09.4]} 26.
Rxd8 {[%clk 0:00:56.3]} 26... Rxd8 {[%clk 0:01:08.2]} 27. Rxd8 {[%clk
0:00:56.4]} 27... Nxd8 {[%clk 0:01:08.1]} 28. Nxe5 {[%clk 0:00:56.4]} 28... Qf6
{[%clk 0:01:05.8]} 29. Qe2 {[%clk 0:00:53.9]} 29... a6 {[%clk 0:01:01.5]} 30.
Ng4 {[%clk 0:00:54.1]} 30... Qa1+ {[%clk 0:01:00.9]} 31. Kh2 {[%clk 0:00:54.8]}
31... h5 {[%clk 0:00:58.5]} 32. Ne3 {[%clk 0:00:33.2]} 32... Qe5+ {[%clk
0:00:55.5]} 33. Kg1 {[%clk 0:00:31.5]} 33... Ne6 {[%clk 0:00:55.3]} 34. Qd2
{[%clk 0:00:29.1]} 34... Nd4 {[%clk 0:00:53.1]} 35. a4 {[%clk 0:00:27.2]} 35...
Nxb3 {[%clk 0:00:51.6]} 36. Qb4 {[%clk 0:00:25.7]} 36... Nd4 {[%clk 0:00:46.4]}
37. axb5 {[%clk 0:00:25.4]} 37... axb5 {[%clk 0:00:45.8]} 38. Qa5 {[%clk
0:00:19.5]} 38... Ne2+ {[%clk 0:00:40.5]} 39. Kf1 {[%clk 0:00:20]} 39... Nf4
{[%clk 0:00:38.3]} 40. Kg1 {[%clk 0:00:13.8]} 40... Nd3 {[%clk 0:00:26.9]} 41.
Qd2 {[%clk 0:00:12.3]} 41... Qe4 {[%clk 0:00:22.6]} 42. Qc3+ {[%clk 0:00:11.7]}
42... Ne5 {[%clk 0:00:21.5]} 43. Qb2 {[%clk 0:00:08]} 43... b4 {[%clk
0:00:20.8]} 44. g4 {[%clk 0:00:05.2]} 44... Kh7 {[%clk 0:00:18.6]} 45. gxh5
{[%clk 0:00:05.3]} 45... gxh5 {[%clk 0:00:19.1]} 46. Qe2 {[%clk 0:00:03.6]}
46... Nf3+ {[%clk 0:00:18.9]} 47. Kf1 {[%clk 0:00:02.3]} 47... Nh2+ {[%clk
0:00:15.4]} 48. Kg1 {[%clk 0:00:02.4]} 48... Nf3+ {[%clk 0:00:15.8]} 49. Kf1
{[%clk 0:00:03.1]} 49... Qb1+ {[%clk 0:00:15.8]} 50. Kg2 {[%clk 0:00:03.5]}
50... Nh4+ {[%clk 0:00:11.3]} 51. Kg3 {[%clk 0:00:03.8]} 51... Ng6 {[%clk
0:00:09.1]} 52. Qxh5+ {[%clk 0:00:04.4]} 52... Kg7 {[%clk 0:00:09.3]} 53. Qb5
{[%clk 0:00:04.5]} 53... Qg1+ {[%clk 0:00:06.1]} 54. Kf3 {[%clk 0:00:04.3]} 1-0

[Event "Early-Titled-Tuesday-Blitz-February-27-2024"]
[Site "Chess.com"]
[Date "2024.02.27"]
[Round "3"]
[White "Onischuk_V"]
[Black "OneTrickPony_82"]
[Result "1/2-1/2"]
[WhiteElo "2792"]
[BlackElo "2549"]
[TimeControl "180+1"]
[EndTime "8:28:54 PST"]
[Termination "Game drawn - insufficient material"]

1. e4 {[%clk 0:02:59.3]} 1... e5 {[%clk 0:03:00]} 2. Nf3 {[%clk 0:02:58.8]} 2...
Nc6 {[%clk 0:03:00.6]} 3. Bc4 {[%clk 0:02:58]} 3... Nf6 {[%clk 0:03:00.1]} 4. d3
{[%clk 0:02:57.4]} 4... Bc5 {[%clk 0:02:59.6]} 5. O-O {[%clk 0:02:54.8]} 5... d6
{[%clk 0:02:59.4]} 6. c3 {[%clk 0:02:54.5]} 6... a5 {[%clk 0:02:59.1]} 7. Nbd2
{[%clk 0:02:52.4]} 7... h6 {[%clk 0:02:59.1]} 8. Re1 {[%clk 0:02:50]} 8... O-O
{[%clk 0:02:48.4]} 9. Nf1 {[%clk 0:02:47]} 9... Be6 {[%clk 0:02:42]} 10. Bb5
{[%clk 0:02:46.2]} 10... Ne7 {[%clk 0:02:26.1]} 11. Ng3 {[%clk 0:02:41.9]} 11...
Ng6 {[%clk 0:02:20.8]} 12. d4 {[%clk 0:02:25.4]} 12... Ba7 {[%clk 0:02:09.6]}
13. h3 {[%clk 0:02:23.7]} 13... c6 {[%clk 0:02:04.1]} 14. Bd3 {[%clk 0:02:23.5]}
14... Re8 {[%clk 0:01:54.6]} 15. Be3 {[%clk 0:02:22.7]} 15... Qc7 {[%clk
0:01:41.5]} 16. Qd2 {[%clk 0:02:12.3]} 16... Nh7 {[%clk 0:01:23.7]} 17. Nf5
{[%clk 0:02:01.1]} 17... Bxf5 {[%clk 0:00:55.7]} 18. exf5 {[%clk 0:02:00.4]}
18... Ngf8 {[%clk 0:00:48.3]} 19. dxe5 {[%clk 0:00:40.5]} 19... Bxe3 {[%clk
0:00:47.1]} 20. Qxe3 {[%clk 0:00:40.1]} 20... dxe5 {[%clk 0:00:43.9]} 21. Nxe5
{[%clk 0:00:36.7]} 21... Nd7 {[%clk 0:00:27.1]} 22. f4 {[%clk 0:00:36.6]} 22...
Nhf6 {[%clk 0:00:26.3]} 23. Bc4 {[%clk 0:00:31.6]} 23... Nd5 {[%clk 0:00:22.1]}
24. Bxd5 {[%clk 0:00:29.2]} 24... cxd5 {[%clk 0:00:22.2]} 25. Qd4 {[%clk
0:00:27.3]} 25... Nf6 {[%clk 0:00:20.9]} 26. Rad1 {[%clk 0:00:21.9]} 26... a4
{[%clk 0:00:18.2]} 27. Ng4 {[%clk 0:00:19.8]} 27... Nxg4 {[%clk 0:00:12.6]} 28.
hxg4 {[%clk 0:00:19.8]} 28... a3 {[%clk 0:00:12.9]} 29. bxa3 {[%clk 0:00:18.2]}
29... Rxe1+ {[%clk 0:00:11.7]} 30. Rxe1 {[%clk 0:00:18.5]} 30... Rxa3 {[%clk
0:00:11.3]} 31. Re8+ {[%clk 0:00:15]} 31... Kh7 {[%clk 0:00:11.5]} 32. f6 {[%clk
0:00:14.9]} 32... Qxc3 {[%clk 0:00:09.2]} 33. Qxc3 {[%clk 0:00:14.1]} 33... Rxc3
{[%clk 0:00:07.6]} 34. Re7 {[%clk 0:00:14.7]} 34... gxf6 {[%clk 0:00:04.8]} 35.
Rxf7+ {[%clk 0:00:14.8]} 35... Kg6 {[%clk 0:00:04.7]} 36. Rxb7 {[%clk
0:00:15.3]} 36... Rc4 {[%clk 0:00:04.4]} 37. g3 {[%clk 0:00:13.7]} 37... f5
{[%clk 0:00:03.7]} 38. Rb6+ {[%clk 0:00:12.5]} 38... Kg7 {[%clk 0:00:03.9]} 39.
gxf5 {[%clk 0:00:12.9]} 39... Rc2 {[%clk 0:00:04.1]} 40. a4 {[%clk 0:00:11.8]}
40... Ra2 {[%clk 0:00:03.9]} 41. Rb4 {[%clk 0:00:09.3]} 41... Kf6 {[%clk
0:00:02.9]} 42. g4 {[%clk 0:00:09.9]} 42... h5 {[%clk 0:00:02.8]} 43. Rb6+
{[%clk 0:00:09.4]} 43... Kf7 {[%clk 0:00:02]} 44. g5 {[%clk 0:00:08.3]} 44...
Rxa4 {[%clk 0:00:01.4]} 45. Rb7+ {[%clk 0:00:08]} 45... Kf8 {[%clk 0:00:01.3]}
46. f6 {[%clk 0:00:04.4]} 46... Rxf4 {[%clk 0:00:02.2]} 47. Kh2 {[%clk
0:00:03.1]} 47... Rh4+ {[%clk 0:00:02.2]} 48. Kg3 {[%clk 0:00:03.4]} 48... Rg4+
{[%clk 0:00:03.1]} 49. Kf3 {[%clk 0:00:03.3]} 49... Rxg5 {[%clk 0:00:04]} 50.
Kf4 {[%clk 0:00:03.8]} 50... Rg1 {[%clk 0:00:04.1]} 51. Kf5 {[%clk 0:00:03.8]}
51... Rf1+ {[%clk 0:00:05]} 52. Kg6 {[%clk 0:00:03.9]} 52... Rg1+ {[%clk
0:00:05.4]} 53. Kxh5 {[%clk 0:00:03.9]} 53... d4 {[%clk 0:00:04.8]} 54. Rd7
{[%clk 0:00:03.7]} 54... d3 {[%clk 0:00:05.2]} 55. Rxd3 {[%clk 0:00:03.9]} 55...
Kf7 {[%clk 0:00:05.7]} 56. Rf3 {[%clk 0:00:04]} 56... Rg6 {[%clk 0:00:05.3]} 57.
Kh4 {[%clk 0:00:04.4]} 57... Rxf6 {[%clk 0:00:05.7]} 58. Rxf6+ {[%clk
0:00:04.6]} 58... Kxf6 {[%clk 0:00:06.2]} 1/2-1/2